Cogmind - Beta 17.1 @@@ ROGUE MODE // 2026.09.08 @ 22:54:11 Player: SunShine214 Result: Destroyed by S-27 Virus with Autogun Performance ------------- Evolutions (5) 2500 Regions Visited (11) 2200 Robots Destroyed (153) 765 Value Destroyed (5693) 5693 Prototype IDs (35) 700 Alien Tech Used (0) 0 Bonus (16322) 16322 TOTAL SCORE: 28180 Bonus ------- High Alert Combat Kills 422 Follower Combat Kills 850 Prayed to X0-1V1 5000 Major X0-1V1 Interference 5250 Forged Quantum Companion 1000 Subatomizer Sterilization 3000 Registered with UFD 300 Met Optimus in HQ 500 Cogmind --------- Core Integrity 0/630 Matter 286/300 Energy 1400/1400 System Corruption 50% Temperature Cool (-666) Movement Walking (260) Ox2 Location -4/Proximity Caves Parts ------- > --- POWER (1) -------- (None) > --- PROPULSION (5) --- Flexi-carbon Leg (fused) Makeshift Flight Unit > --- UTILITY (8) ------ High-capacity Storage Unit Hacking Suite Hacking Suite Advanced System Shield A0-MCA's Component Scanner X0-1V1's Piety Tracker > --- WEAPON (4) ------- Light Antimatter Cannon Light Antimatter Cannon Quantum Companion (fused) > --- INVENTORY (20) --- Light Fission Core Fusion Compressor Neutrino Core Overtuned Scrapsphere High-capacity Storage Unit Advanced Signal Interpreter Improved Transmission Jammer Improved Remote Shield Makeshift Hacking Suite Wave Gun Dispersion Rifle Matter Neutralizer KE Penetrator Magnetic Acceleration Cannon Heavy Shock Bomb Launcher Heavy Shock Bomb Launcher Improved Concussive RPG (1) Thermoblaster CPS Tube (1) Peak State ------------ > --- POWER ------------ Neutrino Core > --- PROPULSION ------- Medium Treads Medium Treads Medium Treads Medium Treads > --- UTILITY ---------- Advanced Cooling System High-capacity Storage Unit Spectral Analyzer Improved Medium Armor Plating Hacking Suite Advanced System Shield A0-MCA's Component Scanner X0-1V1's Piety Tracker > --- WEAPON ----------- Heavy Gatling Laser Enhanced Coil Gun Heavy Flak Cannon Quantum Companion > --- INVENTORY -------- Overtuned Scrapsphere Overtuned Scrapsphere High-capacity Storage Unit Improved Transmission Jammer Hardened Medium Armor Plating Improved Medium Armor Plating Improved Remote Shield Hacking Suite Heavy Plasma Cannon Matter Neutralizer Matter Neutralizer KE Penetrator Magnetic Acceleration Cannon Improved Proton Missile Launcher Heavy Shock Bomb Launcher Heavy Shock Bomb Launcher Improved Concussive RPG CPS Tube CPS Tube [Rating: 113] Favorites ----------- Power Neutrino Core Engine Light Angular Momentum Engine Power Core Neutrino Core Reactor Light Antimatter Reactor Propulsion Medium Treads Treads Medium Treads Leg Flexi-carbon Leg Wheel Overtuned Scrapsphere Hover Unit Improved Antigrav System Flight Unit Makeshift Flight Unit Utility High-capacity Storage Unit Device X0-1V1's Piety Tracker Storage High-capacity Storage Unit Processor A0-MCA's Component Scanner Hackware Hacking Suite Protection Improved Medium Armor Plating Weapon Medium Laser Energy Gun Medium Laser Energy Cannon Compact Ion Cannon Ballistic Gun Enhanced Coil Gun Ballistic Cannon Heavy Flak Cannon Special Weapon CPS Tube Slashing Weapon Companion Sword Build | -11 -10 -10 -9 -6 -6 -6 -5 -5 -5 -5 -4 ------- Run | Yrd Mat Sub Scr Fac Was Fac Fac Upp Upp War Pro Slots Evolved 10 | . . . . 8 . . 2 . . . . Power . | . . . . . . . . . . . . Propulsion 3 | . . . . 2 . . 1 . . . . Utility 5 | . . . . 4 . . 1 . . . . Weapon 2 | . . . . 2 . . . . . . . Parts Attached 97 | 8 2 2 4 19 . 13 19 . 12 . 18 Power 12 | 1 . . . 3 . 1 4 . 2 . 1 Engine 3 | 1 . . . 1 . 1 . . . . . Core 8 | . . . . 2 . . 4 . 2 . . Reactor 1 | . . . . . . . . . . . 1 Propulsion 26 | 2 . 1 1 4 . 5 4 . 2 . 7 Treads 16 | 2 . 1 1 . . 5 4 . 2 . 1 Leg 4 | . . . . 2 . . . . . . 2 Wheel 2 | . . . . 2 . . . . . . . Hover 1 | . . . . . . . . . . . 1 Flight 3 | . . . . . . . . . . . 3 Utility 30 | 2 1 1 2 5 . 5 7 . 2 . 5 Device 12 | 1 1 1 . 4 . 1 3 . . . 1 Storage 4 | 1 . . 1 . . . 1 . 1 . . Processor 2 | . . . 1 1 . . . . . . . Hackware 5 | . . . . . . 2 1 . 1 . 1 Protection 7 | . . . . . . 2 2 . . . 3 Artifact . | . . . . . . . . . . . . Weapon 29 | 3 1 . 1 7 . 2 4 . 6 . 5 Energy Gun 7 | 3 1 . . . . . 1 . 1 . 1 Energy Cannon 5 | . . . . 1 . 1 . . 2 . 1 Ballistic Gun 6 | . . . . 3 . . 1 . 1 . 1 Ballistic Cannon 7 | . . . . 3 . 1 2 . . . 1 Launcher . | . . . . . . . . . . . . Special Weapon 2 | . . . . . . . . . 2 . . Impact Weapon . | . . . . . . . . . . . . Slashing Weapon 2 | . . . 1 . . . . . . . 1 Piercing Weapon . | . . . . . . . . . . . . Special Melee Weapon . | . . . . . . . . . . . . Unidentified Prototypes 1 | . 1 . . . . . . . . . . Corrupted Parts 2 | . . . . . . . . . . . 2 System Corruption 9 | . . . . . . . . . . . 9 Parts Lost 49 | . . 2 . 7 . 3 6 2 10 . 19 Power 5 | . . 1 . 1 . . . . 2 . 1 Propulsion 16 | . . . . 1 . . 2 2 4 . 7 Utility 16 | . . 1 . 2 . 1 4 . 2 . 6 Weapon 12 | . . . . 3 . 2 . . 2 . 5 Highest Loss Streak 7 | . . 1 . 2 . 1 4 2 7 . 5 To Critical Strikes 3 | . . . . . . . . . 3 . . Average Backups 15 | . 4 8 10 18 18 17 18 17 17 18 17 Power . | . . . . . 1 1 1 1 . 1 2 Propulsion 2 | . . . . 4 5 5 4 2 2 4 2 Utility 5 | . 3 6 5 7 8 6 5 5 5 4 4 Weapon 4 | . 1 2 3 3 2 2 4 6 7 7 6 Tool/Special . | . . . . . . . . . . . . Unused Backups 39 | . 1 1 4 14 . 3 3 . . . 13 Power 2 | . . . . . . 1 . . . . 1 Propulsion 6 | . . . . 4 . 1 . . . . 1 Utility 19 | . 1 1 3 6 . 1 3 . . . 4 Weapon 11 | . . . 1 4 . . . . . . 6 Tool/Special 1 | . . . . . . . . . . . 1 Average Slot Usage (%) 84 | . 100 89 75 77 86 93 94 98 82 88 81 Engine 1 | . 14 8 . . 6 5 . . . . . Core 2 | . . . . 3 . . 4 5 3 5 4 Treads 16 | . 28 24 18 2 . 23 25 25 16 16 9 Wheel 2 | . . . . 11 13 . . . . . . Flight 1 | . . . . 2 6 . . . . . 5 Device 9 | . 14 13 7 11 13 5 9 11 11 11 8 Storage 7 | . 14 14 14 6 6 5 4 5 5 5 5 Processor 8 | . . . 6 12 13 11 10 11 8 5 5 Hackware 5 | . . . . . . 11 10 11 13 16 12 Protection 2 | . . . . . . 2 4 5 4 5 5 Energy Gun 9 | . 28 28 24 1 . . 1 5 3 11 4 Energy Cannon 3 | . . . . 4 6 6 7 . 1 5 2 Ballistic Gun 2 | . . . . 7 . . 1 5 2 . 1 Ballistic Cannon 3 | . . . . 2 13 12 4 5 2 . 2 Slashing Weapon 4 | . . . 3 5 6 5 4 5 5 5 4 Peak Build Rating 113 | 7 19 21 29 97 94 103 111 111 113 104 111 Average Rating 70 | 6 7 18 20 83 93 91 101 108 98 104 96 On Entrance 64 | . 7 19 18 29 94 94 93 106 111 104 104 Avg Prop Armor Cover (%) 5 | . . . 14 4 1 1 . . . . 10 Naked Turns . | . . . . . . . . . . . . Heaviest Build 93 | 12 13 13 46 78 78 93 92 86 86 79 89 Greatest Support 140 | 40 40 40 38 38 28 112 140 140 140 84 111 Greatest Overweight (x) 3 | . . . 2 3 2 2 . 1 2 . 3 Average Overweight (x) . | . . . 1 1 2 . . . . . . Largest Inventory Capacity 20 | 8 8 8 20 20 20 20 20 20 20 20 20 Average Capacity 18 | 7 8 8 18 20 20 20 20 20 20 20 20 Most Carried 20 | 1 8 8 20 20 19 20 20 20 20 18 20 Average Carried 15 | . 4 8 10 19 19 19 18 17 17 18 17 Final Capacity 20 | 8 8 8 20 20 20 20 20 20 20 20 20 Final Carried 20 | 1 8 8 20 19 19 19 19 20 18 18 19 Scrap Suit Usage (%) 22 | . . . . 85 100 1 42 . . . . Parts Cannibalized 2 | . . . . 1 . . 1 . . . . Class Distribution -------------------- 33% | Mutant 22% | Hacker-Tank 17% | Scrapper 7% | Hacker-Mutant 6% | Hacker-Skirmisher 3% | Derelict-Mutant 3% | Derelict-Tank 3% | Commander-Skirmisher Dominant Class ---------------- Mutant | -10/Materials Mutant | -10/Subcaves Mutant | -9/Scraptown Scrapper | -6/Factory Scrapper | -6/Waste Hacker-Tank | -6/Factory Hacker-Tank | -5/Factory Hacker-Tank | -5/Upper Caves Hacker-Tank | -5/Upper Caves Hacker-Tank | -5/Warlord Hacker-Mutant | -4/Proximity Caves Resources | -11 -10 -10 -9 -6 -6 -6 -5 -5 -5 -5 -4 ----------- Run | Yrd Mat Sub Scr Fac Was Fac Fac Upp Upp War Pro Matter Collected 5323 | 277 10 65 43 1810 35 590 535 374 571 . 1013 Remotely . | . . . . . . . . . . . . Salvage Created 7610 | 237 161 181 . 2768 . 508 1471 302 551 . 1431 Parts 361 | 22 6 11 . 147 . 28 67 18 13 . 49 Haulers Intercepted 3 | . 1 . . . . 1 1 . . . . Recyclers Shooed 4 | . . . . 1 . 1 2 . . . . Parts Field Recycled . | . . . . . . . . . . . . Retrieved Matter . | . . . . . . . . . . . . Parts Self-Destructed 80 | . . 15 . . . . . 19 6 . 40 Prevented 9 | . . . . . . . . . . . 9 Parts Restored . | . . . . . . . . . . . . Kills | -11 -10 -10 -9 -6 -6 -6 -5 -5 -5 -5 -4 ------- Run | Yrd Mat Sub Scr Fac Was Fac Fac Upp Upp War Pro Combat Hostiles Destroyed 101 | . 2 6 . 32 . 5 14 9 10 . 23 Melee 9 | . . . . 6 . . 1 . 1 . 1 Guns 40 | . 2 6 . 14 . . 2 6 4 . 6 Cannons 46 | . . . . 11 . 5 11 3 5 . 11 AOE 3 | . . . . 1 . . . . . . 2 Classes Destroyed 23 | 3 3 3 . 5 . 1 3 2 1 . 2 Worker 11 | 2 . . . 4 . 3 2 . . . . Builder 5 | . 1 . . 2 . . 1 . . . 1 Tunneler 10 | 7 . . . 3 . . . . . . . Hauler 3 | . 1 . . . . 1 1 . . . . Recycler 14 | 1 . . . 7 . 1 4 . . . 1 Mechanic 1 | . . . . . . . 1 . . . . Operator 2 | . . . . 1 . 1 . . . . . Drone 1 | . . . . . . . . . 1 . . Watcher 6 | . . . . 5 . . 1 . . . . Swarmer 20 | . . 2 . 5 . 2 1 5 . . 5 Cutter 1 | . . . . . . . . 1 . . . Grunt 36 | . 2 . . 15 . 2 3 3 4 . 7 Brawler 4 | . . . . . . . 1 . . . 3 Duelist 4 | . . . . 2 . . 1 . . . 1 Protector 1 | . . . . . . . . . . . 1 Sentry 14 | . . 1 . 2 . . 5 . 1 . 5 Specialist 2 | . . . . 2 . . . . . . . Hunter 5 | . . . . . . . 3 . 2 . . Programmer 7 | . . . . 6 . 1 . . . . . Behemoth 1 | . . . . . . . . . . . 1 Subdweller 3 | . . 3 . . . . . . . . . Scrapoid 1 | . . . . . . 1 . . . . . Decomposer 2 | . . . . . . . . . 2 . . Samaritan 4 | . . . . . . . . 1 2 . 1 Savage 2 | . . . . . . . . . 2 . . Best Kill Streak 5 | 4 2 2 . 5 . 2 5 5 4 . 4 Combat Bots Only 5 | . 1 2 . 4 . 2 3 5 4 . 4 Max Kills in Single Turn 3 | 2 1 1 . 3 . 1 2 2 2 . 1 Gunslinging . | . . . . . . . . . . . . Exploded 1 | . . . . 1 . . . . . . 1 Melee 1 | . . . . 1 . . 1 . 1 . 1 Uniques/NPCs Destroyed . | . . . . . . . . . . . . Combat | -11 -10 -10 -9 -6 -6 -6 -5 -5 -5 -5 -4 -------- Run | Yrd Mat Sub Scr Fac Was Fac Fac Upp Upp War Pro Hostile Shots Fired 761 | . 12 52 . 186 1 24 133 28 122 . 203 Missed 208 | . 3 25 . 53 . 7 35 9 25 . 51 Deflected 6 | . . . . . . . . . . . 6 Hits 553 | . 9 27 . 133 1 17 98 19 97 . 152 Melee 87 | . . . . 3 1 . 6 2 62 . 13 Projectile 466 | . 9 27 . 130 . 17 92 17 35 . 139 AOE 3 | . . 2 . . . . 1 . . . . Critical Strikes 37 | . . . . 6 1 1 10 2 10 . 7 Part Disruptions 2 | . . . . 2 . . . . . . . Damage Taken 10734 | . 110 495 . 2350 54 418 2203 323 1264 . 3517 Core 1398 | . 57 166 . 323 . 73 154 23 95 . 507 Absorbed by Shields . | . . . . . . . . . . . . Regen/Repaired (Parts) 227 | . . . 207 10 . . 10 . . . . Core Remaining (%) 45 | 100 . . 15 . . 21 . . . . . Volleys Fired 324 | 24 17 30 . 70 . 29 31 12 39 . 72 Largest 4 | 2 2 2 . 4 . 4 3 3 3 . 3 Hottest 270 | 90 100 100 . 208 . 268 224 174 174 . 270 Shots Fired 759 | 42 34 55 . 182 . 81 89 39 71 . 166 Gun 384 | 42 34 55 . 96 . . 14 27 38 . 78 Cannon 372 | . . . . 86 . 81 75 12 30 . 88 Launcher . | . . . . . . . . . . . . Special 3 | . . . . . . . . . 3 . . Kinetic 348 | . . . . 120 . 52 38 24 36 . 78 Thermal 395 | 42 34 55 . 62 . 29 51 15 32 . 75 Explosive . | . . . . . . . . . . . . Electromagnetic 13 | . . . . . . . . . . . 13 Robot Hit Streak 15 | 15 7 7 . 12 . 6 9 10 11 . 11 Robot Miss Streak 13 | 3 2 7 . 8 . 13 3 4 4 . 5 Penetration Max 1 | . . . . 1 . . 1 1 1 . 1 Secondary Targets 1 | . . 1 . . . . . . . . . Max Gunslinging Chain 1 | . . 1 . . . . . . . . . Autonomous 12 | . . . . . . . . . 1 . 11 Shots Hit Robots 571 | 28 23 33 . 155 . 61 69 29 60 . 113 Core Hits 318 | 11 6 13 . 95 . 42 39 29 38 . 45 Critical Kills 4 | . . . . 1 . . . . . . 3 Critical Parts Destroyed 8 | . . . . 1 . . 1 . 1 . 5 Critical Strikes 31 | 1 1 5 . 4 . 3 3 . 1 . 13 Burn 7 | 1 1 5 . . . . . . . . . Meltdown 3 | . . . . . . . . . . . 3 Destroy 9 | . . . . 2 . . 1 . 1 . 5 Blast 10 | . . . . . . 3 2 . . . 5 Melee Attacks 164 | . . . . 71 . 17 21 4 24 . 27 Impact . | . . . . . . . . . . . . Slashing 164 | . . . . 71 . 17 21 4 24 . 27 Piercing . | . . . . . . . . . . . . Sneak Attacks 43 | . . . . 16 . 7 9 2 8 . 1 Combat Hostiles 3 | . . . . . . . . . 3 . . Follow-up Attacks 2 | . . . . . . . . . 2 . . Damage Inflicted 20022 | 348 283 435 . 5608 . 2114 2777 962 2506 . 4989 Guns 5662 | 348 283 435 . 1416 . . 420 622 970 . 1168 Cannons 8025 | . . . . 1354 . 1410 1503 150 544 . 3064 Explosions 317 | . . . . 243 . . . . . . 74 Melee 6018 | . . . . 2595 . 704 854 190 992 . 683 Ramming . | . . . . . . . . . . . . Kinetic 6400 | . . . . 1787 . 1048 770 414 805 . 1576 Thermal 6485 | 348 283 435 . 1226 . 362 1153 358 639 . 1681 Explosive . | . . . . . . . . . . . . Electromagnetic 79 | . . . . . . . . . . . 79 Impact . | . . . . . . . . . . . . Slashing 6018 | . . . . 2595 . 704 854 190 992 . 683 Piercing . | . . . . . . . . . . . . Phasic 1040 | . . . . . . . . . 70 . 970 Highest Corruption 50 | . . 23 . 6 10 12 3 11 41 41 50 Average Corruption 21 | . . 17 . 2 10 10 2 11 24 41 43 Corruption Purged . | . . . . . . . . . . . . Corruption Blocked . | . . . . . . . . . . . . Effects 297 | . . 27 . 9 3 53 8 30 53 2 112 Message Errors 59 | . . 5 . 3 . 12 2 7 10 1 19 Matter Fused 68 | . . 4 . 2 1 12 . 3 14 . 32 Heat Flow Errors 31 | . . 2 . 2 . 1 2 6 9 . 9 Energy Discharges 26 | . . 4 . . . 6 1 2 3 . 10 Parts Rejected 5 | . . 1 . . . 1 . 1 1 . 1 Parts Fused 4 | . . 1 . . . . . . 1 . 2 Data Loss (minor) 41 | . . 4 . 1 1 11 1 5 5 . 13 Data Loss (major) 17 | . . 1 . 1 . 2 1 1 2 . 9 Misfires 8 | . . . . . . 1 . 3 1 . 3 Alerts 11 | . . . . . . 1 . 2 3 1 4 Misdirections 2 | . . . . . 1 1 . . . . . Weapon Failures 25 | . . 5 . . . 5 1 . 4 . 10 Overload Shots . | . . . . . . . . . . . . Overflow Damage 1442 | . . . . 300 . 142 313 29 291 . 367 Projectiles 263 | . . . . . . 30 32 . 14 . 187 Explosions . | . . . . . . . . . . . . Melee 1179 | . . . . 300 . 112 281 29 277 . 180 Knockbacks 23 | . . . . 5 . 4 5 5 3 . 1 Impact . | . . . . . . . . . . . . Kinetic 21 | . . . . 5 . 3 4 5 3 . 1 Secondary 2 | . . . . . . 1 1 . . . . Self-Inflicted Damage 24 | . . . . . . . . . . . 24 Shots 1 | . . . . . . . . . . . 1 Rammed 1 | 1 . . . . . . . . . . . Targets Rammed 1 | 1 . . . . . . . . . . . Kicked . | . . . . . . . . . . . . Crushed . | . . . . . . . . . . . . Highest Temperature 521 | 184 219 261 . 437 . 420 521 187 246 . 236 Average Temperature 125 | 68 104 105 . 139 . 106 213 50 114 . 98 Received Heat Transfer 2392 | . 60 111 . 810 . 9 378 63 216 . 745 Effects 21 | . . . . 6 . 2 13 . . . . Shutdowns 6 | . . . . 2 . 1 3 . . . . Energy Bleed 4 | . . . . 1 . 1 2 . . . . Interference 7 | . . . . 3 . . 4 . . . . Matter Decay 3 | . . . . . . . 3 . . . . Damage (minor) 1 | . . . . . . . 1 . . . . Siege Activations . | . . . . . . . . . . . . Martial Activations . | . . . . . . . . . . . . Shielding Activations . | . . . . . . . . . . . . Robots Disrupted 1 | . . . . 1 . . . . . . . Combat Hostiles 1 | . . . . 1 . . . . . . . Robots Corrupted . | . . . . . . . . . . . . Combat Hostiles . | . . . . . . . . . . . . Parts Fried 1 | . . . . . . . 1 . . . . Impact Corruptions . | . . . . . . . . . . . . Robots Melted 4 | . 1 . . . . . . . . . 3 Combat Hostiles 3 | . . . . . . . . . . . 3 Parts Melted 12 | 1 3 3 . . . 1 2 . . . 2 Heat Transferred 10524 | 956 854 1665 . 1532 . 444 1584 600 1011 . 1878 Parts Sabotaged . | . . . . . . . . . . . . Parts Stolen 5 | . . . . . . . . . 5 . . Parts Stripped . | . . . . . . . . . . . . Power Chain Reactions . | . . . . . . . . . . . . Alert | -11 -10 -10 -9 -6 -6 -6 -5 -5 -5 -5 -4 ------- Run | Yrd Mat Sub Scr Fac Was Fac Fac Upp Upp War Pro Maximum Alert Level 3 | . . . . 3 1 2 1 . . . . Low Security (%) 44 | 100 100 . . 35 . 18 61 . . . . Level 1 29 | . . . . 8 100 69 38 . . . . Level 2 16 | . . . . 33 . 12 . . . . . Level 3 9 | . . . . 22 . . . . . . . Level 4 . | . . . . . . . . . . . . Level 5 . | . . . . . . . . . . . . High Security . | . . . . . . . . . . . . Max Security . | . . . . . . . . . . . . Sterilizations 1 | . . . . . . . 1 . . . . Peak Influence 1064 | 15 35 . . 1064 370 445 373 . . . . Initial 370 | . . . . . 370 245 135 . . . . Average 294 | 3 4 . . 457 360 282 153 . . . . Influence Increases 4518 | 50 72 105 . 1766 . 647 812 200 230 . 636 Destroy 0b10 Robot/C 2600 | . 40 100 . 800 . 360 460 180 200 . 460 Destroy 0b10 Robot/NC 285 | 50 10 . . 110 . 40 60 . . . 15 Destroy Leader 460 | . 22 . . 180 . 74 104 20 30 . 30 Allied During Kill 277 | . . 5 . 62 . 128 71 . . . 11 Successful Hack 31 | . . . . 26 . . 5 . . . . Disable Machine 270 | . . . . 240 . 15 15 . . . . Destroy Structure 160 | . . . . 93 . 15 52 . . . . Lose Combat Pursuer 435 | . . . . 255 . 15 45 . . . 120 Influence Decreases 4409 | 50 63 114 . 708 708 721 800 478 240 . 527 Entered New Map 1049 | . . 5 . . 688 105 141 108 2 . . Time Decay 2655 | 50 63 99 . 558 20 506 509 350 174 . 326 Lost Part 405 | . . 10 . 70 . 30 50 20 64 . 161 Lost Ally 300 | . . . . 80 . 80 100 . . . 40 Squads Dispatched 39 | . 2 . . 16 . 11 8 . . . 2 Investigation 15 | . . . . 7 . 3 4 . . . 1 Extermination 9 | . . . . 6 . 2 1 . . . . Reinforcement 6 | . 2 . . 2 . . 1 . . . 1 Assault 3 | . . . . 1 . . 2 . . . . Garrison 6 | . . . . . . 6 . . . . . Intercept . | . . . . . . . . . . . . Searches Triggered . | . . . . . . . . . . . . Construction Impeded 1 | . . . . . . . . . . . 1 Haulers Reinforced . | . . . . . . . . . . . . Active Scanning Responses . | . . . . . . . . . . . . Cargo Convoy Interrupts . | . . . . . . . . . . . . Stealth | -11 -10 -10 -9 -6 -6 -6 -5 -5 -5 -5 -4 --------- Run | Yrd Mat Sub Scr Fac Was Fac Fac Upp Upp War Pro Distress Signals 7 | . 2 . . 4 . . 1 . . . . Communications Jammed . | . . . . . . . . . . . . Distress Signals . | . . . . . . . . . . . . Times Spotted 205 | . 6 15 . 69 5 25 23 10 9 . 43 Peak Tracking Total 6 | . 4 3 . 5 5 5 4 5 4 . 6 Tactical Retreats 20 | . . . . 11 . 1 2 . . . 6 Traps | -11 -10 -10 -9 -6 -6 -6 -5 -5 -5 -5 -4 ------- Run | Yrd Mat Sub Scr Fac Was Fac Fac Upp Upp War Pro Traps Triggered 16 | . . . . 7 . 6 3 . . . . Indirectly . | . . . . . . . . . . . . Trap Hack Attempts . | . . . . . . . . . . . . Triggered . | . . . . . . . . . . . . Disarmed . | . . . . . . . . . . . . Reprogrammed . | . . . . . . . . . . . . Reused . | . . . . . . . . . . . . Traps Extracted . | . . . . . . . . . . . . Installed . | . . . . . . . . . . . . Triggered . | . . . . . . . . . . . . Machines | -11 -10 -10 -9 -6 -6 -6 -5 -5 -5 -5 -4 ---------- Run | Yrd Mat Sub Scr Fac Was Fac Fac Upp Upp War Pro Machines Disabled 22 | . . . . 16 . 1 2 . . . 3 Max in Single Turn 8 | . . . . 8 . 1 1 . . . 1 Garrison Access 4 | . . . . 2 . . 2 . . . . Machines Repaired . | . . . . . . . . . . . . Machines Dismantled . | . . . . . . . . . . . . Machines Sabotaged . | . . . . . . . . . . . . Overloaded Fab Kills . | . . . . . . . . . . . . Hacking | -11 -10 -10 -9 -6 -6 -6 -5 -5 -5 -5 -4 --------- Run | Yrd Mat Sub Scr Fac Was Fac Fac Upp Upp War Pro Machines Accessed 41 | . . . 5 18 . 6 8 1 . . 3 Terminals 13 | . . . . 5 . 3 3 . . . 2 Fabricators 1 | . . . . . . 1 . . . . . Repair Stations 1 | . . . . 1 . . . . . . . Recycling Units 12 | . . . . 7 . 1 3 . . . 1 Scanalyzers 5 | . . . . 2 . 1 2 . . . . Garrison Access 3 | . . . . 3 . . . . . . . Total Hacks 94 | . . . 19 33 . 13 18 1 . . 10 Successful 53 | . . . 19 12 . 8 7 1 . . 6 Failed 41 | . . . . 21 . 5 11 . . . 4 Catastrophic 8 | . . . . 4 . 1 2 . . . 1 Database Lockouts . | . . . . . . . . . . . . Manual 35 | . 1 . . 21 . 3 10 . . . . Terminals 29 | . . . . 10 . 3 10 . . . 6 Fabricators 1 | . . . . . . 1 . . . . . Repair Stations 1 | . . . . 1 . . . . . . . Recycling Units 25 | . . . . 15 . 2 4 . . . 4 Scanalyzers 15 | . . . . 4 . 7 4 . . . . Garrison Access 3 | . . . . 3 . . . . . . . Terminal Hacks 33 | . . . 19 3 . . 4 1 . . 6 Record 19 | . . . 13 1 . . . . . . 5 Robot Analysis 5 | . . . 5 . . . . . . . . Open Door 3 | . . . 1 . . . . 1 . . 1 Branch Access Points 2 | . . . . 1 . . 1 . . . . Recycling Unit Index 1 | . . . . . . . 1 . . . . Recall Investigation 2 | . . . . . . . 2 . . . . Registered Components 1 | . . . . 1 . . . . . . . Fabricator Hacks 1 | . . . . . . 1 . . . . . Network Status 1 | . . . . . . 1 . . . . . Repair Station Hacks . | . . . . . . . . . . . . Recycling Unit Hacks . | . . . . . . . . . . . . Scanalyzer 7 | . . . . 1 . 6 . . . . . Insert Component 4 | . . . . 1 . 3 . . . . . Analyze 3 | . . . . . . 3 . . . . . Garrison Access Hacks 2 | . . . . 2 . . . . . . . Seal Access 2 | . . . . 2 . . . . . . . Unauthorized Hacks 10 | . . . . 6 . 1 3 . . . . Terminals . | . . . . . . . . . . . . Fabricators . | . . . . . . . . . . . . Repair Stations . | . . . . . . . . . . . . Recycling Units 10 | . . . . 6 . 1 3 . . . . Fedlink 9 | . . . . 6 . . 3 . . . . Scrapoids 1 | . . . . . . 1 . . . . . Scanalyzers . | . . . . . . . . . . . . Garrison Access . | . . . . . . . . . . . . Data Cores Recovered 2 | . 1 . . . . 1 . . . . . Used . | . . . . . . . . . . . . Hacking Detections 21 | . . . . 10 . 4 6 . . . 1 Full Trace Events 3 | . . . . 1 . . 1 . . . 1 Feedback Events . | . . . . . . . . . . . . Feedback Blocked . | . . . . . . . . . . . . Robot Schematics Acquired . | . . . . . . . . . . . . Robots Built . | . . . . . . . . . . . . Authchips . | . . . . . . . . . . . . Time . | . . . . . . . . . . . . Total Robot Build Rating . | . . . . . . . . . . . . Part Schematics Acquired 3 | . . . . . . 3 . . . . . Parts Built . | . . . . . . . . . . . . Authchips . | . . . . . . . . . . . . Time . | . . . . . . . . . . . . Total Part Build Rating . | . . . . . . . . . . . . Part Studies Acquired . | . . . . . . . . . . . . Parts Repaired . | . . . . . . . . . . . . Time . | . . . . . . . . . . . . Parts Recycled . | . . . . . . . . . . . . Recycled Matter . | . . . . . . . . . . . . Retrieved Matter . | . . . . . . . . . . . . Retrieved Components . | . . . . . . . . . . . . Parts Scanalyzed 3 | . . . . 1 . 2 . . . . . Part Schematics Acquired 3 | . . . . . . 3 . . . . . Parts Damaged 1 | . . . . . . 1 . . . . . Bothacking | -11 -10 -10 -9 -6 -6 -6 -5 -5 -5 -5 -4 ------------ Run | Yrd Mat Sub Scr Fac Was Fac Fac Upp Upp War Pro Used RIF Installer . | . . . . . . . . . . . . Robots Hacked . | . . . . . . . . . . . . Non-combat . | . . . . . . . . . . . . Combat . | . . . . . . . . . . . . Robot Hacks Applied . | . . . . . . . . . . . . Relay Couplers Released 3 | . . . . . . . 3 . . . . Machine Destruction 3 | . . . . . . . 3 . . . . Fabnet Peak Effective % . | . . . . . . . . . . . . Robots Rewired . | . . . . . . . . . . . . Allies Hacked 4 | . . . . . . . 4 . . . . Hacks Repelled . | . . . . . . . . . . . . Allies | -11 -10 -10 -9 -6 -6 -6 -5 -5 -5 -5 -4 -------- Run | Yrd Mat Sub Scr Fac Was Fac Fac Upp Upp War Pro Total Allies 21 | . . 3 . 4 . 5 5 . . . 4 Largest Group 5 | . . 3 2 4 . 5 4 . . . 4 Highest-Rated Group 168 | . . 35 27 116 . 143 120 . . . 168 Highest-Rated Ally 119 | . . 19 19 29 . 31 119 . . . 42 Initial UFD Resources 65 | . . . . 23 45 45 46 62 62 62 65 Total Orders . | . . . . . . . . . . . . Ally Attacks 212 | . . 23 . 55 . 95 27 . . . 12 Total Damage 4027 | . . 261 . 757 . 1370 1238 . . . 401 Kills 41 | . . 4 . 8 . 15 11 . . . 3 Allies Corrupted . | . . . . . . . . . . . . Allies Melted 1 | . . . . . . . 1 . . . . X0-1V1 Amusement Gains 294 | . 9 10 . 110 . 15 41 . 20 . 89 Average Entertainment 50 | . 9 3 . 44 85 90 74 68 51 . 26 Good Acts 70 | . . 10 . 24 3 6 10 4 1 . 12 Bad Acts 51 | . . 20 . 10 . . 6 4 8 . 3 Intel | -11 -10 -10 -9 -6 -6 -6 -5 -5 -5 -5 -4 ------- Run | Yrd Mat Sub Scr Fac Was Fac Fac Upp Upp War Pro Active Infowar (turns) 7318 | 160 421 . . 2427 57 1370 1558 791 534 . . Optics 6737 | . . . . 2427 57 1370 1558 791 534 . . Seismic 581 | 160 421 . . . . . . . . . . Robot Analysis Total 5 | . . . 5 . . . . . . . . Derelict Logs Recovered 5 | . . 1 1 . . . . 1 1 . 1 Drone Launches . | . . . . . . . . . . . . Drone Recoveries . | . . . . . . . . . . . . Exploration | -11 -10 -10 -9 -6 -6 -6 -5 -5 -5 -5 -4 ------------- Run | Yrd Mat Sub Scr Fac Was Fac Fac Upp Upp War Pro Turns Passed 13490 | 228 434 998 2544 2616 57 1370 1577 791 966 60 1849 Spaces Moved 7045 | 64 233 561 981 1938 64 735 837 456 384 38 754 Core 2 | 2 . . . . . . . . . . . Treads 4793 | 62 233 561 981 19 . 719 837 456 384 38 503 Legs 179 | . . . . 97 . . . . . . 82 Wheels 1902 | . . . . 1822 64 16 . . . . . Hover . | . . . . . . . . . . . . Flight 169 | . . . . . . . . . . . 169 Fastest Speed 50 | 50 160 160 160 80 90 90 160 160 160 160 160 Average Speed 161 | 156 160 160 257 98 90 158 160 160 185 160 203 Slowest Speed 322 | 160 160 160 320 260 90 160 160 240 320 160 322 Overloaded Moves . | . . . . . . . . . . . . Propulsion Burnouts . | . . . . . . . . . . . . Robots Hopped . | . . . . . . . . . . . . Potential Cave-ins 2 | . . . . . . . . . 2 . . Cave-ins Triggered . | . . . . . . . . . . . . Exploration Rate (%) 45 | 5 35 36 78 55 77 23 36 75 56 10 61 Regions Visited 11 Branch Regions 6 Pre-discovered Areas 2 | . . . . 1 . . . . 1 . . Known Exits Taken 2 | . . . . . . 1 1 . . . . Unknown Exits Taken 7 | 1 1 1 1 . . . . 1 1 1 . Scrap Searched 14 | . . 2 4 . . . . 2 2 . 4 Spaces Dug 31 | . . . . 16 . 7 8 . . . . Terrain Destroyed 187 | . . . . 114 . 12 21 11 14 . 15 Melee 31 | . . . . 16 . 7 8 . . . . Projectile 92 | . . . . 34 . 5 13 11 14 . 15 AOE 64 | . . . . 64 . . . . . . . Terrain Rammed . | . . . . . . . . . . . . Walls Destroyed . | . . . . . . . . . . . . Machines Disabled . | . . . . . . . . . . . . Actions | -11 -10 -10 -9 -6 -6 -6 -5 -5 -5 -5 -4 --------- Run | Yrd Mat Sub Scr Fac Was Fac Fac Upp Upp War Pro Total 8284 | 145 261 604 1004 2419 63 855 976 480 545 37 895 Wait 450 | 48 . 6 . 247 . 29 41 . 76 . 3 Move 7035 | 63 232 560 980 1938 63 734 836 455 383 37 754 Hop . | . . . . . . . . . . . . Pick Up 92 | 1 8 2 15 25 . 11 11 4 6 . 9 Fast Attach 51 | 7 . 2 1 11 . 8 3 2 6 . 11 Attach 42 | . . . . 5 . 8 8 3 9 . 9 Detach 14 | . . . . 3 . 4 2 . 1 . 4 Swap 32 | 1 2 1 3 5 . 5 10 . 2 . 3 Drop 60 | . 2 3 5 25 . 10 10 . 1 . 4 Fire 324 | 24 17 30 . 70 . 29 31 12 39 . 72 Melee 161 | . . . . 71 . 17 21 4 22 . 26 Ram . | . . . . . . . . . . . . Kick . | . . . . . . . . . . . . Crush 1 | 1 . . . . . . . . . . . Escape Stasis 16 | . . . . 16 . . . . . . . Rewire 6 | . . . . 3 . . 3 . . . . Trap . | . . . . . . . . . . . . Miscellaneous . | . . . . . . . . . . . . Route ------- -11/Scrapyard -10/Materials (discovered 2 exits: [*Mat] / [*Sub]) -10/Subcaves (discovered 4 exits: [*Mat x2] / Rec / *Scr) -9/Scraptown (discovered 2 exits: *Fac x2) -6/Factory (discovered 3 exits: *Fac / *Low x2) -6/Waste -6/Factory (discovered 2 exits: *Fac x2) -5/Factory (discovered 2 exits: *Upp x2) -5/Upper Caves -5/Upper Caves -5/Warlord -4/Proximity Caves History --------- Turn | Location | Event 17 | -11/Scrapyard | Discovered new exit (range 13) 229 | -11/Scrapyard | Entered Materials 230 | -10/Materials | Met a group of wandering Federalists 306 | -10/Materials | Build established: Mutant 329 | -10/Materials | Discovered new exit (range 9) 366 | -10/Materials | Discovered new exit (range 5) 649 | -10/Materials | Prayed at D.C.S.S. Altar Unit 663 | -10/Materials | Entered Subcaves 664 | -10/Subcaves | Continued accompanying wandering Federalists (5) 701 | -10/Subcaves | X0-1V1 activates XOMVISION 741 | -10/Subcaves | Identified exit to Recycling 741 | -10/Subcaves | X0-1V1 revealed exit location to -9/Recycling 745 | -10/Subcaves | A swath of the cavern ceiling suddenly collapsed 772 | -10/Subcaves | Disturbed a concealed Subdweller 883 | -10/Subcaves | Discovered new exit (range 14) 904 | -10/Subcaves | Shifting Twisted Machinery released Sub. Monowheel 910 | -10/Subcaves | Shifting Twisted Machinery released Mak. Light Armor Plating 962 | -10/Subcaves | Learned Materials trap positions 1041 | -10/Subcaves | A swath of the cavern ceiling suddenly collapsed 1133 | -10/Subcaves | System corruption reached 10% 1142 | -10/Subcaves | X0-1V1 caused items to flee you 1330 | -10/Subcaves | Discovered new exit (range 5) 1332 | -10/Subcaves | Shifting Twisted Machinery released Mak. Light Armor Plating 1398 | -10/Subcaves | X0-1V1 sent hostile S-10 Pest (x4) 1408 | -10/Subcaves | X0-1V1 sent allied G-34 Mercenary (x3) 1412 | -10/Subcaves | X0-1V1 rewrote G-34 Mercenary IFF filter 1421 | -10/Subcaves | Items stopped fleeing you 1436 | -10/Subcaves | Melee accuracy permanently improved by X0-1V1 (+7%; -70 max core) 1445 | -10/Subcaves | X0-1V1 sent you into danger 1448 | -10/Subcaves | Ambushed by Subdweller buried in earth 1458 | -10/Subcaves | Core integrity fell below 50% 1487 | -10/Subcaves | Core integrity fell below 20% 1661 | -10/Subcaves | Entered Scraptown 1661 | -9/Scraptown | Accompanied by 2 allies 1661 | -9/Scraptown | System corruption cleaned by C-Scrubber 1926 | -9/Scraptown | Discovered new exit (range 11) 2062 | -9/Scraptown | Scanned Subdweller tech in exchange for log data 2229 | -9/Scraptown | Heard Great Nut preacher, LISTEN AND RECITE! 2232 | -9/Scraptown | Visited TADAMA 2289 | -9/Scraptown | Visited Shadow of the Wyrm 2347 | -9/Scraptown | Visited UFD Registry 2347 | -9/Scraptown | Registered with UFD as "Gearparser" 2389 | -9/Scraptown | Visited Cyclists 2411 | -9/Scraptown | Entered Cyclist Reading Room 2526 | -9/Scraptown | Visited Fellowship of the Rings 2606 | -9/Scraptown | Visited CR-KLE's Repair Center 2629 | -9/Scraptown | CR-KLE repaired 2 parts 2875 | -9/Scraptown | Visited Analyses Database 2949 | -9/Scraptown | Visited A0-MCA Data Center 2968 | -9/Scraptown | Given a D rating by A0-MCA 2977 | -9/Scraptown | Found A0-MCA's Component Scanner 3061 | -9/Scraptown | Visited Science Testing Area 3099 | -9/Scraptown | Visited LU-1G1's Boring Crew 3141 | -9/Scraptown | Visited Scrap Suit Storage 3182 | -9/Scraptown | Visited Infowarlord's Domain 3202 | -9/Scraptown | Found Spectral Analyzer 3276 | -9/Scraptown | Found Scrap Suit 3348 | -9/Scraptown | Visited Modified Component R&D 3491 | -9/Scraptown | Visited Junk Repository 3620 | -9/Scraptown | Visited Sword Containment 3652 | -9/Scraptown | Found Companion Sword 4044 | -9/Scraptown | Met Optimus 4044 | -9/Scraptown | Accepted into 0bPrime 4197 | -9/Scraptown | Discovered new exit (range 3) 4205 | -9/Scraptown | Entered Factory 4205 | -6/Factory | Accompanied by 2 allies 4205 | -6/Factory | Evolved 8 slots: Propulsion x2, Utility x4, Weapon x2 4661 | -6/Factory | Sight range permanently improved by X0-1V1 (+2; -300 max core) 4679 | -6/Factory | Spotted B-75 Beast 4836 | -6/Factory | Build established: Scrapper 5193 | -6/Factory | X0-1V1 sent you to a vault 5231 | -6/Factory | Identified exit to Factory 5231 | -6/Factory | X0-1V1 revealed exit location to -5/Factory 5368 | -6/Factory | X0-1V1 redirected Transport squads to designated parking area 5874 | -6/Factory | Loaded intel: 8 recycling unit locations 5955 | -6/Factory | First assault squad dispatched 6076 | -6/Factory | X0-1V1 whisked you away to safety 6357 | -6/Factory | Learned location of Protoforge (-2) 6406 | -6/Factory | Core integrity fell below 50% 6442 | -6/Factory | Identified exit to Lower Caves 6821 | -6/Factory | Sucked down chute 6821 | -6/Factory | Entered Waste 6829 | -6/Waste | Spotted C-40 Crusher 6831 | -6/Waste | Spotted C-40 Crusher 6836 | -6/Waste | EMP discharged 6836 | -6/Waste | System corruption reached 10% 6839 | -6/Waste | Spotted C-40 Crusher 6840 | -6/Waste | Spotted C-40 Crusher 6857 | -6/Waste | Discovered new exit (range 23) 6857 | -6/Waste | Spotted C-40 Crusher 6862 | -6/Waste | Spotted C-40 Crusher 6864 | -6/Waste | Crushed by Compactor (0 parts destroyed, 1 dropped) 6878 | -6/Waste | Entered Factory 7073 | -6/Factory | Scrapoid reinforcements arrived 7167 | -6/Factory | Discovered exit to Factory (range 18) 7387 | -6/Factory | Build established: Commander-Skirmisher 7429 | -6/Factory | Garrison activated, responded to threat 7554 | -6/Factory | Utility slot count permanently improved by X0-1V1 (+1) 7612 | -6/Factory | Weapon slot count temporarily expanded by X0-1V1 (+3) 7614 | -6/Factory | Garrison activated, responded to threat 7618 | -6/Factory | X0-1V1 whisked you away to safety 7764 | -6/Factory | Found Scrap Suit 7862 | -6/Factory | Build established: Hacker-Tank 8111 | -6/Factory | Discovered exit to Factory (range 5) 8248 | -6/Factory | Entered another Factory area 8248 | -5/Factory | Evolved 2 slots: Propulsion x1, Utility x1 8282 | -5/Factory | X0-1V1 released a cloud of subatomizers 8284 | -5/Factory | Identified exit to Upper Caves 8305 | -5/Factory | Weapon slot count reverted to normal (-3) 8815 | -5/Factory | X0-1V1 sent you to a vault 8821 | -5/Factory | Build established: Hacker-Skirmisher 8961 | -5/Factory | Loaded intel: 8 recycling unit locations 9238 | -5/Factory | Sterilization system engaged 9238 | -5/Factory | Non-combat units ordered to evacuate 9252 | -5/Factory | Build established: Hacker-Tank 9338 | -5/Factory | Combat units ordered to evacuate 9341 | -5/Factory | Spotted B-75 Beast 9346 | -5/Factory | X0-1V1 whisked you away to safety 9359 | -5/Factory | X0-1V1 sent allied Executioner (x1) 9403 | -5/Factory | Lost 4 parts (2n2u) 9538 | -5/Factory | Ambient heat levels rising (+10) 9668 | -5/Factory | X0-1V1 sent hostile B-60 Warrior (x2) 9688 | -5/Factory | Ambient heat levels rising (+10) 9825 | -5/Factory | Entered Upper Caves 9909 | -5/Upper Caves | Learned Factory non-interactive machine intel 9911 | -5/Upper Caves | System corruption reached 10% 10082 | -5/Upper Caves | X0-1V1 sent hostile C-35 Carver (x1) 10130 | -5/Upper Caves | X0-1V1 activates XOMVISION 10242 | -5/Upper Caves | Spotted B-75 Beast 10392 | -5/Upper Caves | Core integrity restored by X0-1V1 (+144) 10568 | -5/Upper Caves | Discovered new exit (range 8) 10616 | -5/Upper Caves | Entered another Upper Caves area 10666 | -5/Upper Caves | X0-1V1 caused items to flee you 10679 | -5/Upper Caves | Forged Quantum Companion 10702 | -5/Upper Caves | Encountered a Warlord checkpoint 10733 | -5/Upper Caves | Spotted B-75 Beast 10912 | -5/Upper Caves | Items stopped fleeing you 11130 | -5/Upper Caves | X0-1V1 vaporized surrounding terrain (radius 21) 11130 | -5/Upper Caves | Discovered new exit (range 19) 11131 | -5/Upper Caves | X0-1V1 sent hostile Savage (x2) 11135 | -5/Upper Caves | Attracted the attention of an 0b10 checkpoint 11157 | -5/Upper Caves | System corruption reached 30% 11195 | -5/Upper Caves | Neutrino Core reconfigured into Item Mimic 11196 | -5/Upper Caves | Lost 7 parts (1p2n2u2w) 11216 | -5/Upper Caves | Attached CPS modules to Item Mimic 11460 | -5/Upper Caves | Build established: Hacker-Mutant 11502 | -5/Upper Caves | Found DCF Scrap (14 items) 11531 | -5/Upper Caves | X0-1V1 vaporized surrounding terrain (radius 21) 11582 | -5/Upper Caves | Entered Warlord 11629 | -5/Warlord | Discovered new exit (range 9) 11642 | -5/Warlord | Entered Proximity Caves 11869 | -4/Proximity Caves | X0-1V1 sent hostile B-60 Warrior (x2) 12158 | -4/Proximity Caves | Encountered a Derelict sapper outpost 12266 | -4/Proximity Caves | Build established: Derelict-Tank 12275 | -4/Proximity Caves | X0-1V1 sent allied C-35 Carver (x4) 12281 | -4/Proximity Caves | Spotted B-86 Titan 12282 | -4/Proximity Caves | Entered a huge 0b10 base via the front door 12307 | -4/Proximity Caves | Destroyed B-86 Titan 12327 | -4/Proximity Caves | Lost 3 parts (1n2w) 12337 | -4/Proximity Caves | Lost 4 allies 12477 | -4/Proximity Caves | X0-1V1 whisked you away to safety 12579 | -4/Proximity Caves | Attracted the attention of an 0b10 base 12664 | -4/Proximity Caves | Learned location of 1 exit from Research 12718 | -4/Proximity Caves | Core integrity fell below 50% 12767 | -4/Proximity Caves | Lost 5 parts (2n2u1w) 12802 | -4/Proximity Caves | Learned Research emergency access door positions 12802 | -4/Proximity Caves | Learned Armory stockpile data 12802 | -4/Proximity Caves | Learned Extension security intel 12802 | -4/Proximity Caves | Learned Armory terminal intel 13415 | -4/Proximity Caves | Core integrity fell below 20% 13445 | -4/Proximity Caves | Lost 4 parts (1p2n1w) 13491 | -4/Proximity Caves | Destroyed by S-27 Virus with Autogun Last Messages --------------- 13431_ Acquired 52 matter. 13433_ U-05 Engineer lays Concrete. 13441_ ,/V1XTW%BT:V66QL41RQBPCHKF78WN0 L/,PCO1C 13441_ U-05 Engineer lays Concrete. 13446_ U-05 Engineer builds a Door. 13450_ U-05 Engineer lays Concrete. 13457_ System corrupted: Energy discharge (-462). 13458_ U-05 Engineer lays Concrete. 13468_ Connecting with Door Terminal... >>Open(Door) Sealed Heavy Doors opened. 13472_ System corrupted: Energy discharge (-518). 13475_ Storage Shell breached. 13476_ Component scanned: Imp. Armor Integrity Analyzer. 13480_ S-27 Virus springs to life. 13489_ FG >Z=4H>VOE4KFUMRV:XJ 13491_ X0-1V1 laughs nastily! Map ----- +----------------------------------------------------+ | ????????????????????????????????????????????? | | ????????????????????????????????????????????? | | ????????????????????????????????????????????? | | ????????????????????????????????????????????? | | ????????????????????????????????????????????? | | ????????????????????????????????????????????? | | ????????????????????????????????????????????? | | ????????????????????????????????????????????? | | ????????????????????????????????????????????? | | ????????????????????????????????????????????? | | ????????????????????????????????????????????? | | ????????????????????????????????????????????? | | ????????????????????????????????????????????? | | ????????????????????????????????????????????? | | ????????????????????????????????????????????? | | ####?????????????########???????????????????? | | #?????????????# "???????????????????? | | ??????????????# "???????????????????? | | ????????????????# "???????????????????? | | #####+######+##### ""??????????????????? | | ??????????????????? | | ???????????????????? | | ???????????????????? | | "### ###+###### """#????????????????? | | #????????#g s "!!#????????????????? | | #?????????????# ss@!#????????????????? | | # ???????????# % s!!#????????????????? | | [ # ???????????#### #####????????????????? | | " "# ??????????????# T#???????????????????? | | " "# ??????????????# ##???????????????????? | | """# ??????????????# #????????????????????? | | #### ############### #????????????????????? | | # # #????????????????????? | | # # #????????????????????? | | # # #????????????????????? | | # # #????????????????????? | | ###++##### #????????????????????? | | #????????????????????? | | %#????????????????????? | | ####### ##+#####????????????????? | | % #?????# # % % #????????????????? | | #?????# # % %#????????????????? | | #?????# # %#????????????????? | | #?????# # %#????????????????? | | #### ## ###?????# # %#????????????????? | | ???# ####???????# # #????????????????? | | ####%=#??????????# # #????????????????? | | % % #??????????# ########????????????????? | | % [%#??????????# #???????????????????????? | | ####+#####???????# #???????????????????????? | +----------------------------------------------------+ Best States ------------- Heat Dissipation 147 Energy Generation 52 Energy Capacity 1470 Matter Stores 900 Matter Capacity 900 Sight Range 31 Terrain Scan Density 10 Armor Coverage 450 Evasion (%) 44 Recoil Reduction 5 Offensive Hacking 20 Defensive Hacking 14 Item Schematics ----------------- Ovr. Huge Scrapsphere | -6/Factory | Scanalyzed CPS Tube | -6/Factory | Scanalyzed Lyr. Medium Armor Plating | -6/Factory | Scanalyzed Robot Schematics ------------------ None Fabricated ------------ Nothing Repaired ---------- Nothing Studied --------- None Alien Tech Used ----------------- None Achievements -------------- Friends Forever Into The Furnace Challenges ------------ None Game ------ Seed VoltaicWeaponRipper Manual? 0 Play Time 01:23:12 Cumulative 226.6 hours Start 2026.09.08 @ 21:29:46 End 2026.09.08 @ 22:54:11 Sessions 1 Manual Loads 0 Difficulty Rogue Special Mode None Game No. 336 Rogue 336 Adventurer 0 Explorer 0 Win Type - Total 1 Types 1/0/0/0/0/0/0/0/0/0 Lore% 69 Gallery% 62 Achievement% 47 Wizard Run 0 Options --------- Layout 1 ASCII 0 Keyboard 1 Movement Arrows Keybinds 0 Fullscreen 1 Font 24/Smallcaps Map View 50x35 Zoom Use 0% Tactical HUD 1 Map Filters NONE Filters NONE Steam 1 RUN: 1740dd9b-5df2-4d49-b838-f90351f0efe9